[Event "Titled Tuesday Blitz August 16 Early 2022"]
[White "Grot, Blazej"]
[Black "Simonovic, Miroslav"]
[WhiteFideId "21835845"]
[BlackFideId "919152"]
[WhiteElo "1614"]
[BlackElo "2043"]
[Result "1-0"]
[Round "06"]
[TimeControl "180+2"]
[Date "2022.08.18"]
[WhiteClock "0:00:00"]
[BlackClock "0:00:00"]

1. e4 {[%clk 0:00:00]}  c5 {[%clk 0:00:00]} 2. Nf3 {[%clk 0:00:00]}  Nc6 {[%clk 0:00:00]} 3. Bb5 {[%clk 0:00:00]}  g6 {[%clk 0:00:00]} 4. Bxc6 {[%clk 0:00:00]}  dxc6 {[%clk 0:00:00]} 5. O-O {[%clk 0:00:00]}  Bg7 {[%clk 0:00:00]} 6. d3 {[%clk 0:00:00]}  e5 {[%clk 0:00:00]} 7. Be3 {[%clk 0:00:00]}  b6 {[%clk 0:00:00]} 8. Nbd2 {[%clk 0:00:00]}  Ne7 {[%clk 0:00:00]} 9. a4 {[%clk 0:00:00]}  a5 {[%clk 0:00:00]} 10. Nc4 {[%clk 0:00:00]}  Qc7 {[%clk 0:00:00]} 11. b4 {[%clk 0:00:00]}  axb4 {[%clk 0:00:00]} 12. a5 {[%clk 0:00:00]}  b5 {[%clk 0:00:00]} 13. Nb6 {[%clk 0:00:00]}  Rxa5 {[%clk 0:00:00]} 14. Rxa5 {[%clk 0:00:00]}  Qxb6 {[%clk 0:00:00]} 15. Ra8 {[%clk 0:00:00]}  O-O {[%clk 0:00:00]} 16. Qa1 {[%clk 0:00:00]}  Bb7 {[%clk 0:00:00]} 17. Rxf8+ {[%clk 0:00:00]}  Kxf8 {[%clk 0:00:00]} 18. Nxe5 {[%clk 0:00:00]}  Ke8 {[%clk 0:00:00]} 19. f4 {[%clk 0:00:00]}  h6 {[%clk 0:00:00]} 20. Qa2 {[%clk 0:00:00]}  b3 {[%clk 0:00:00]} 21. Qxb3 {[%clk 0:00:00]}  c4 {[%clk 0:00:00]} 22. Nxc4 {[%clk 0:00:00]}  Qc7 {[%clk 0:00:00]} 23. Nd2 {[%clk 0:00:00]}  Bc8 {[%clk 0:00:00]} 24. h3 {[%clk 0:00:00]}  Be6 {[%clk 0:00:00]} 25. Qa3 {[%clk 0:00:00]}  Qb7 {[%clk 0:00:00]} 26. Nb3 {[%clk 0:00:00]}  b4 {[%clk 0:00:00]} 27. Qa4 {[%clk 0:00:00]}  Bc3 {[%clk 0:00:00]} 28. Nc5 {[%clk 0:00:00]}  Qb6 {[%clk 0:00:00]} 29. Kf2 {[%clk 0:00:00]}  Bc8 {[%clk 0:00:00]} 30. Qa8 {[%clk 0:00:00]}  Qd8 {[%clk 0:00:00]} 31. Nb7 {[%clk 0:00:00]}  Qc7 {[%clk 0:00:00]} 32. Qxc8+ {[%clk 0:00:00]}  Qxc8 {[%clk 0:00:00]} 33. Nd6+ {[%clk 0:00:00]}  Kd7 {[%clk 0:00:00]} 34. Nxc8 {[%clk 0:00:00]}  Kxc8 {[%clk 0:00:00]} 35. Bc5 {[%clk 0:00:00]}  Kd7 {[%clk 0:00:00]} 36. Rb1 {[%clk 0:00:00]}  f5 {[%clk 0:00:00]} 37. Bxb4 {[%clk 0:00:00]}  Bd4+ {[%clk 0:00:00]} 38. Kf3 {[%clk 0:00:00]}  fxe4+ {[%clk 0:00:00]} 39. dxe4 {[%clk 0:00:00]}  c5 {[%clk 0:00:00]} 40. Bd2 {[%clk 0:00:00]}  Kc6 {[%clk 0:00:00]} 41. c3 {[%clk 0:00:00]}  Bf6 {[%clk 0:00:00]} 42. e5 {[%clk 0:00:00]}  Bh8 {[%clk 0:00:00]} 43. c4 {[%clk 0:00:00]}  Nf5 {[%clk 0:00:00]} 44. Be3 {[%clk 0:00:00]}  h5 {[%clk 0:00:00]} 45. g4 {[%clk 0:00:00]}  hxg4+ {[%clk 0:00:00]} 46. hxg4 {[%clk 0:00:00]}  Nxe3 {[%clk 0:00:00]} 47. Kxe3 {[%clk 0:00:00]}  g5 {[%clk 0:00:00]} 48. Ke4 {[%clk 0:00:00]}  gxf4 {[%clk 0:00:00]} 49. Kxf4 {[%clk 0:00:00]}  Bg7 {[%clk 0:00:00]} 50. Kf5 {[%clk 0:00:00]}  Bf8 {[%clk 0:00:00]} 51. g5 {[%clk 0:00:00]}  Bg7 {[%clk 0:00:00]} 52. g6 {[%clk 0:00:00]}  Bf8 {[%clk 0:00:00]} 53. Rd1 {[%clk 0:00:00]}  Bg7 {[%clk 0:00:00]} 54. Ke6 {[%clk 0:00:00]}  Kb6 {[%clk 0:00:00]} 55. Kf7 {[%clk 0:00:00]}  Bxe5 {[%clk 0:00:00]} 56. g7 {[%clk 0:00:00]}  Bxg7 {[%clk 0:00:00]} 57. Kxg7 {[%clk 0:00:00]}  Ka5 {[%clk 0:00:00]} 58. Kf6 {[%clk 0:00:00]}  Kb4 {[%clk 0:00:00]} 59. Rc1 {[%clk 0:00:00]}  Kb3 {[%clk 0:00:00]} 60. Ke5 {[%clk 0:00:00]}  Kb2 {[%clk 0:00:00]} 61. Rh1 {[%clk 0:00:00]}  Kc3 {[%clk 0:00:00]} 62. Kd5 {[%clk 0:00:00]}  Kb4 {[%clk 0:00:00]} 63. Rb1+ {[%clk 0:00:00]}  Kc3 {[%clk 0:00:00]} 64. Kxc5 {[%clk 0:00:00]}  Kc2 {[%clk 0:00:00]} 65. Rh1 {[%clk 0:00:00]}  Kd3 {[%clk 0:00:00]} 1-0


[Site "https://www.chess.com"]

[Event "Titled Tuesday Blitz August 16 Early 2022"]
[White "Gubanov, Oleg"]
[Black "Fernandez Hernandez, Gerardo"]
[WhiteFideId "14115115"]
[BlackFideId "2207400"]
[WhiteElo "2258"]
[BlackElo "2169"]
[Result "1-0"]
[Round "06"]
[TimeControl "180+2"]
[Date "2022.08.18"]
[WhiteClock "0:00:00"]
[BlackClock "0:00:00"]

1. d4 {[%clk 0:00:00]}  Nf6 {[%clk 0:00:00]} 2. Nc3 {[%clk 0:00:00]}  e6 {[%clk 0:00:00]} 3. Bf4 {[%clk 0:00:00]}  d5 {[%clk 0:00:00]} 4. e3 {[%clk 0:00:00]}  Bd6 {[%clk 0:00:00]} 5. Nf3 {[%clk 0:00:00]}  O-O {[%clk 0:00:00]} 6. Bd3 {[%clk 0:00:00]}  b6 {[%clk 0:00:00]} 7. Bg5 {[%clk 0:00:00]}  h6 {[%clk 0:00:00]} 8. Bh4 {[%clk 0:00:00]}  Ba6 {[%clk 0:00:00]} 9. O-O {[%clk 0:00:00]}  Bxd3 {[%clk 0:00:00]} 10. cxd3 {[%clk 0:00:00]}  Nbd7 {[%clk 0:00:00]} 11. e4 {[%clk 0:00:00]}  Be7 {[%clk 0:00:00]} 12. Rc1 {[%clk 0:00:00]}  a6 {[%clk 0:00:00]} 13. Bg3 {[%clk 0:00:00]}  Rc8 {[%clk 0:00:00]} 14. Qa4 {[%clk 0:00:00]}  Nb8 {[%clk 0:00:00]} 15. Ne5 {[%clk 0:00:00]}  Nh5 {[%clk 0:00:00]} 16. Nc6 {[%clk 0:00:00]}  Nxc6 {[%clk 0:00:00]} 17. Qxc6 {[%clk 0:00:00]}  Nxg3 {[%clk 0:00:00]} 18. hxg3 {[%clk 0:00:00]}  dxe4 {[%clk 0:00:00]} 19. dxe4 {[%clk 0:00:00]}  Qxd4 {[%clk 0:00:00]} 20. Rfd1 {[%clk 0:00:00]}  Qc5 {[%clk 0:00:00]} 21. Na4 {[%clk 0:00:00]}  Qxc6 {[%clk 0:00:00]} 22. Rxc6 {[%clk 0:00:00]}  b5 {[%clk 0:00:00]} 23. Nc3 {[%clk 0:00:00]}  Bd6 {[%clk 0:00:00]} 24. Rxa6 {[%clk 0:00:00]}  b4 {[%clk 0:00:00]} 25. Nb5 {[%clk 0:00:00]}  Be5 {[%clk 0:00:00]} 26. b3 {[%clk 0:00:00]}  c6 {[%clk 0:00:00]} 27. Na7 {[%clk 0:00:00]}  Ra8 {[%clk 0:00:00]} 28. Rd7 {[%clk 0:00:00]}  Rfb8 {[%clk 0:00:00]} 29. Rxc6 {[%clk 0:00:00]}  Kf8 {[%clk 0:00:00]} 30. Rc5 {[%clk 0:00:00]}  Bc3 {[%clk 0:00:00]} 31. Rcc7 {[%clk 0:00:00]} 1-0


[Site "https://www.chess.com"]

[Event "Titled Tuesday Blitz August 16 Early 2022"]
[White "Hess, Robert"]
[Black "Dubov, Daniil"]
[WhiteFideId "2022036"]
[BlackFideId "24126055"]
[WhiteElo "2557"]
[BlackElo "2791"]
[Result "0-1"]
[Round "06"]
[TimeControl "180+1"]
[Date "2022.08.16"]
[WhiteClock "0:00:12"]
[BlackClock "0:01:05"]

1. e4 {[%clk 0:03:00]}  e5 {[%clk 0:02:56]} 2. Nf3 {[%clk 0:03:00]}  Nc6 {[%clk 0:02:56]} 3. Bb5 {[%clk 0:03:01]}  a6 {[%clk 0:02:56]} 4. Ba4 {[%clk 0:02:59]}  Nf6 {[%clk 0:02:57]} 5. Bxc6 {[%clk 0:03:00]}  dxc6 {[%clk 0:02:57]} 6. d3 {[%clk 0:03:01]}  Qd6 {[%clk 0:02:55]} 7. Nbd2 {[%clk 0:02:56]}  Be6 {[%clk 0:02:55]} 8. Ng5 {[%clk 0:02:40]}  O-O-O {[%clk 0:02:51]} 9. Nxe6 {[%clk 0:02:36]}  Qxe6 {[%clk 0:02:52]} 10. Qf3 {[%clk 0:02:35]}  Nd7 {[%clk 0:02:43]} 11. Nc4 {[%clk 0:02:33]}  g6 {[%clk 0:02:42]} 12. h4 {[%clk 0:02:25]}  Bb4+ {[%clk 0:02:38]} 13. Bd2 {[%clk 0:02:20]}  Bxd2+ {[%clk 0:02:37]} 14. Nxd2 {[%clk 0:02:21]}  f5 {[%clk 0:02:36]} 15. h5 {[%clk 0:02:20]}  Kb8 {[%clk 0:02:27]} 16. Qh3 {[%clk 0:02:14]}  Nf6 {[%clk 0:02:06]} 17. Nb3 {[%clk 0:01:37]}  Nxh5 {[%clk 0:01:55]} 18. exf5 {[%clk 0:01:37]}  Qd5 {[%clk 0:01:55]} 19. fxg6 {[%clk 0:00:46]}  Nf4 {[%clk 0:01:54]} 20. Qh6 {[%clk 0:00:24]}  Nxg2+ {[%clk 0:01:45]} 21. Kd2 {[%clk 0:00:24]}  hxg6 {[%clk 0:01:26]} 22. Qxh8 {[%clk 0:00:25]}  Rxh8 {[%clk 0:01:26]} 23. Rxh8+ {[%clk 0:00:26]}  Ka7 {[%clk 0:01:27]} 24. Rf8 {[%clk 0:00:16]}  e4 {[%clk 0:01:06]} 25. Re1 {[%clk 0:00:12]}  Nxe1 {[%clk 0:01:05]} 0-1


[Site "https://www.chess.com"]

[Event "Titled Tuesday Blitz August 16 Early 2022"]
[White "Horak, Martin"]
[Black "Qashashvili, Alexandre"]
[WhiteFideId "367095"]
[BlackFideId "13600842"]
[WhiteElo "2238"]
[BlackElo "2505"]
[Result "1-0"]
[Round "06"]
[TimeControl "180+2"]
[Date "2022.08.18"]
[WhiteClock "0:00:00"]
[BlackClock "0:00:00"]

1. d4 {[%clk 0:00:00]}  c6 {[%clk 0:00:00]} 2. e4 {[%clk 0:00:00]}  d5 {[%clk 0:00:00]} 3. Nc3 {[%clk 0:00:00]}  dxe4 {[%clk 0:00:00]} 4. Nxe4 {[%clk 0:00:00]}  Nd7 {[%clk 0:00:00]} 5. Nf3 {[%clk 0:00:00]}  Ngf6 {[%clk 0:00:00]} 6. Nxf6+ {[%clk 0:00:00]}  Nxf6 {[%clk 0:00:00]} 7. h3 {[%clk 0:00:00]}  Bf5 {[%clk 0:00:00]} 8. Bd3 {[%clk 0:00:00]}  Bxd3 {[%clk 0:00:00]} 9. Qxd3 {[%clk 0:00:00]}  e6 {[%clk 0:00:00]} 10. Bf4 {[%clk 0:00:00]}  Bd6 {[%clk 0:00:00]} 11. Bxd6 {[%clk 0:00:00]}  Qxd6 {[%clk 0:00:00]} 12. O-O {[%clk 0:00:00]}  O-O {[%clk 0:00:00]} 13. Rad1 {[%clk 0:00:00]}  Rad8 {[%clk 0:00:00]} 14. Qc4 {[%clk 0:00:00]}  Qd5 {[%clk 0:00:00]} 15. Qb3 {[%clk 0:00:00]}  Qxb3 {[%clk 0:00:00]} 16. axb3 {[%clk 0:00:00]}  a6 {[%clk 0:00:00]} 17. b4 {[%clk 0:00:00]}  h6 {[%clk 0:00:00]} 18. Rfe1 {[%clk 0:00:00]}  Nd5 {[%clk 0:00:00]} 19. c3 {[%clk 0:00:00]}  Nb6 {[%clk 0:00:00]} 20. Ne5 {[%clk 0:00:00]}  Nd7 {[%clk 0:00:00]} 21. Nc4 {[%clk 0:00:00]}  Nf6 {[%clk 0:00:00]} 22. g3 {[%clk 0:00:00]}  Rd5 {[%clk 0:00:00]} 23. Kg2 {[%clk 0:00:00]}  Rfd8 {[%clk 0:00:00]} 24. f4 {[%clk 0:00:00]}  g6 {[%clk 0:00:00]} 25. Re5 {[%clk 0:00:00]}  Rxe5 {[%clk 0:00:00]} 26. fxe5 {[%clk 0:00:00]}  Nd5 {[%clk 0:00:00]} 27. Kf3 {[%clk 0:00:00]}  Kf8 {[%clk 0:00:00]} 28. Ke4 {[%clk 0:00:00]}  Rd7 {[%clk 0:00:00]} 29. Rf1 {[%clk 0:00:00]}  Kg7 {[%clk 0:00:00]} 30. Nd6 {[%clk 0:00:00]}  Nb6 {[%clk 0:00:00]} 31. c4 {[%clk 0:00:00]}  Kf8 {[%clk 0:00:00]} 32. b3 {[%clk 0:00:00]}  Rc7 {[%clk 0:00:00]} 33. g4 {[%clk 0:00:00]}  Nc8 {[%clk 0:00:00]} 34. h4 {[%clk 0:00:00]}  Nb6 {[%clk 0:00:00]} 35. h5 {[%clk 0:00:00]}  gxh5 {[%clk 0:00:00]} 36. gxh5 {[%clk 0:00:00]}  Rd7 {[%clk 0:00:00]} 37. Rf6 {[%clk 0:00:00]}  Kg7 {[%clk 0:00:00]} 38. Rf1 {[%clk 0:00:00]}  Re7 {[%clk 0:00:00]} 39. Rg1+ {[%clk 0:00:00]}  Kh7 {[%clk 0:00:00]} 40. Kd3 {[%clk 0:00:00]}  Rd7 {[%clk 0:00:00]} 41. Kc3 {[%clk 0:00:00]}  f5 {[%clk 0:00:00]} 42. Ne8 {[%clk 0:00:00]}  Rd8 {[%clk 0:00:00]} 43. Nf6+ {[%clk 0:00:00]}  Kh8 {[%clk 0:00:00]} 44. Rg6 {[%clk 0:00:00]}  Nd7 {[%clk 0:00:00]} 45. Rxh6+ {[%clk 0:00:00]}  Kg7 {[%clk 0:00:00]} 46. Rh7+ {[%clk 0:00:00]}  Kf8 {[%clk 0:00:00]} 47. Rxd7 {[%clk 0:00:00]}  Rxd7 {[%clk 0:00:00]} 48. Nxd7+ {[%clk 0:00:00]}  Ke7 {[%clk 0:00:00]} 49. Nf6 {[%clk 0:00:00]}  Kf7 {[%clk 0:00:00]} 50. h6 {[%clk 0:00:00]}  Kg6 {[%clk 0:00:00]} 51. h7 {[%clk 0:00:00]}  Kg7 {[%clk 0:00:00]} 52. Kd3 {[%clk 0:00:00]}  Kh8 {[%clk 0:00:00]} 53. Ke3 {[%clk 0:00:00]}  b5 {[%clk 0:00:00]} 54. Kf4 {[%clk 0:00:00]}  Kg7 {[%clk 0:00:00]} 55. Kg5 {[%clk 0:00:00]}  Kh8 {[%clk 0:00:00]} 56. Kg6 {[%clk 0:00:00]}  f4 {[%clk 0:00:00]} 57. Ng8 {[%clk 0:00:00]}  f3 {[%clk 0:00:00]} 58. Nh6 {[%clk 0:00:00]}  f2 {[%clk 0:00:00]} 59. Nf7# {[%clk 0:00:00]} 1-0


[Site "https://www.chess.com"]

[Event "Titled Tuesday Blitz August 16 Early 2022"]
[White "Ibarra Jerez, Jose Carlos"]
[Black "Martinez Alcantara, Jose Eduardo"]
[WhiteFideId "2226332"]
[BlackFideId "3805662"]
[WhiteElo "2628"]
[BlackElo "2703"]
[Result "1/2-1/2"]
[Round "06"]
[TimeControl "180+1"]
[Date "2022.08.16"]
[WhiteClock "0:01:06"]
[BlackClock "0:01:22"]

1. e4 {[%clk 0:02:58]}  e5 {[%clk 0:03:00]} 2. Nf3 {[%clk 0:02:55]}  Nf6 {[%clk 0:03:00]} 3. Nxe5 {[%clk 0:02:52]}  d6 {[%clk 0:03:00]} 4. Nf3 {[%clk 0:02:51]}  Nxe4 {[%clk 0:03:00]} 5. Nc3 {[%clk 0:02:51]}  Nf6 {[%clk 0:02:59]} 6. d4 {[%clk 0:02:51]}  Be7 {[%clk 0:03:00]} 7. h3 {[%clk 0:02:51]}  O-O {[%clk 0:03:00]} 8. Bd3 {[%clk 0:02:51]}  Nbd7 {[%clk 0:02:58]} 9. O-O {[%clk 0:02:51]}  Re8 {[%clk 0:02:57]} 10. Re1 {[%clk 0:02:48]}  Nf8 {[%clk 0:02:51]} 11. Ne2 {[%clk 0:02:37]}  Ng6 {[%clk 0:02:35]} 12. Ng3 {[%clk 0:02:25]}  Bd7 {[%clk 0:02:35]} 13. c4 {[%clk 0:02:22]}  c6 {[%clk 0:02:32]} 14. Qc2 {[%clk 0:02:16]}  Bf8 {[%clk 0:02:31]} 15. Bg5 {[%clk 0:02:14]}  Rxe1+ {[%clk 0:02:09]} 16. Rxe1 {[%clk 0:02:14]}  Be7 {[%clk 0:02:08]} 17. Nf5 {[%clk 0:02:04]}  Bxf5 {[%clk 0:02:06]} 18. Bxf5 {[%clk 0:02:05]}  Qc7 {[%clk 0:02:00]} 19. g3 {[%clk 0:01:40]}  Nf8 {[%clk 0:01:40]} 20. Kg2 {[%clk 0:01:38]}  h6 {[%clk 0:01:39]} 21. Bd2 {[%clk 0:01:32]}  Re8 {[%clk 0:01:38]} 22. a4 {[%clk 0:01:25]}  Bd8 {[%clk 0:01:30]} 23. Rxe8 {[%clk 0:01:23]}  Nxe8 {[%clk 0:01:30]} 24. b3 {[%clk 0:01:20]}  Bf6 {[%clk 0:01:29]} 25. Qd3 {[%clk 0:01:17]}  g6 {[%clk 0:01:28]} 26. Be4 {[%clk 0:01:16]}  Bg7 {[%clk 0:01:28]} 27. Qc2 {[%clk 0:01:12]}  Qd7 {[%clk 0:01:22]} 28. d5 {[%clk 0:01:09]}  c5 {[%clk 0:01:22]} 29. Bf4 {[%clk 0:01:06]} 1/2-1/2


[Site "https://www.chess.com"]

[Event "Titled Tuesday Blitz August 16 Early 2022"]
[White "Kambrath, Yannick"]
[Black "Demchenko, Anton"]
[WhiteFideId "20632525"]
[BlackFideId "4160258"]
[WhiteElo "2236"]
[BlackElo "2539"]
[Result "1-0"]
[Round "06"]
[TimeControl "180+1"]
[Date "2022.08.16"]
[WhiteClock "0:00:14"]
[BlackClock "0:00:06"]

1. e4 {[%clk 0:02:50]}  e5 {[%clk 0:02:38]} 2. Nf3 {[%clk 0:02:50]}  Nc6 {[%clk 0:02:31]} 3. Bc4 {[%clk 0:02:45]}  Nf6 {[%clk 0:02:22]} 4. d3 {[%clk 0:02:43]}  Be7 {[%clk 0:02:22]} 5. O-O {[%clk 0:02:41]}  O-O {[%clk 0:02:22]} 6. a4 {[%clk 0:02:34]}  d6 {[%clk 0:02:22]} 7. a5 {[%clk 0:02:25]}  a6 {[%clk 0:02:19]} 8. c3 {[%clk 0:02:25]}  Kh8 {[%clk 0:02:11]} 9. Qb3 {[%clk 0:02:23]}  Qe8 {[%clk 0:01:57]} 10. Re1 {[%clk 0:02:22]}  Ng8 {[%clk 0:01:54]} 11. d4 {[%clk 0:02:18]}  Bg4 {[%clk 0:01:40]} 12. Nbd2 {[%clk 0:02:05]}  Rb8 {[%clk 0:01:34]} 13. h3 {[%clk 0:01:52]}  Bh5 {[%clk 0:01:31]} 14. g4 {[%clk 0:01:43]}  Bg6 {[%clk 0:01:29]} 15. Nf1 {[%clk 0:01:44]}  f6 {[%clk 0:01:07]} 16. Ng3 {[%clk 0:01:41]}  Bf7 {[%clk 0:01:06]} 17. Bxf7 {[%clk 0:01:38]}  Rxf7 {[%clk 0:01:04]} 18. d5 {[%clk 0:01:38]}  Nd8 {[%clk 0:01:00]} 19. h4 {[%clk 0:01:30]}  Qd7 {[%clk 0:00:57]} 20. Nf5 {[%clk 0:01:30]}  g6 {[%clk 0:00:53]} 21. Ne3 {[%clk 0:01:30]}  Bf8 {[%clk 0:00:53]} 22. Qa4 {[%clk 0:01:27]}  Qc8 {[%clk 0:00:52]} 23. Kh2 {[%clk 0:01:08]}  Bh6 {[%clk 0:00:48]} 24. Rg1 {[%clk 0:01:08]}  Bf4+ {[%clk 0:00:44]} 25. Kh1 {[%clk 0:01:07]}  c6 {[%clk 0:00:39]} 26. c4 {[%clk 0:00:52]}  Ne7 {[%clk 0:00:34]} 27. Bd2 {[%clk 0:00:41]}  c5 {[%clk 0:00:16]} 28. b4 {[%clk 0:00:24]}  f5 {[%clk 0:00:08]} 29. gxf5 {[%clk 0:00:20]}  gxf5 {[%clk 0:00:06]} 30. Qe8+ {[%clk 0:00:14]} 1-0


[Site "https://www.chess.com"]

[Event "Titled Tuesday Blitz August 16 Early 2022"]
[White "Kavyev, Ruslan"]
[Black "Nathan, Nitish"]
[WhiteFideId "34110981"]
[BlackFideId "30927870"]
[WhiteElo "2253"]
[BlackElo "1813"]
[Result "0-1"]
[Round "06"]
[TimeControl "180+2"]
[Date "2022.08.18"]
[WhiteClock "0:00:00"]
[BlackClock "0:00:00"]

1. d4 {[%clk 0:00:00]}  d5 {[%clk 0:00:00]} 2. c4 {[%clk 0:00:00]}  c6 {[%clk 0:00:00]} 3. g3 {[%clk 0:00:00]}  Nf6 {[%clk 0:00:00]} 4. Nf3 {[%clk 0:00:00]}  dxc4 {[%clk 0:00:00]} 5. Bg2 {[%clk 0:00:00]}  Nbd7 {[%clk 0:00:00]} 6. O-O {[%clk 0:00:00]}  Nb6 {[%clk 0:00:00]} 7. Qc2 {[%clk 0:00:00]}  g6 {[%clk 0:00:00]} 8. Na3 {[%clk 0:00:00]}  Bg7 {[%clk 0:00:00]} 9. Nxc4 {[%clk 0:00:00]}  Bf5 {[%clk 0:00:00]} 10. Qc3 {[%clk 0:00:00]}  Ne4 {[%clk 0:00:00]} 11. Qb4 {[%clk 0:00:00]}  Nxc4 {[%clk 0:00:00]} 12. Qxc4 {[%clk 0:00:00]}  Nd6 {[%clk 0:00:00]} 13. Qa4 {[%clk 0:00:00]}  O-O {[%clk 0:00:00]} 14. b3 {[%clk 0:00:00]}  a5 {[%clk 0:00:00]} 15. Qa3 {[%clk 0:00:00]}  Nb5 {[%clk 0:00:00]} 16. Qc5 {[%clk 0:00:00]}  Nxd4 {[%clk 0:00:00]} 17. Bg5 {[%clk 0:00:00]}  Ne6 {[%clk 0:00:00]} 18. Qxe7 {[%clk 0:00:00]}  Nxg5 {[%clk 0:00:00]} 19. Qxg5 {[%clk 0:00:00]}  Qxg5 {[%clk 0:00:00]} 20. Nxg5 {[%clk 0:00:00]}  Bxa1 {[%clk 0:00:00]} 21. Rxa1 {[%clk 0:00:00]}  Rad8 {[%clk 0:00:00]} 22. e4 {[%clk 0:00:00]}  Bc8 {[%clk 0:00:00]} 23. e5 {[%clk 0:00:00]}  Bf5 {[%clk 0:00:00]} 24. h3 {[%clk 0:00:00]}  h5 {[%clk 0:00:00]} 25. a3 {[%clk 0:00:00]}  Rfe8 {[%clk 0:00:00]} 26. Re1 {[%clk 0:00:00]}  Rd3 {[%clk 0:00:00]} 27. b4 {[%clk 0:00:00]}  Rxa3 {[%clk 0:00:00]} 28. bxa5 {[%clk 0:00:00]}  Rxa5 {[%clk 0:00:00]} 29. f3 {[%clk 0:00:00]}  Raxe5 {[%clk 0:00:00]} 30. Rd1 {[%clk 0:00:00]}  Re1+ {[%clk 0:00:00]} 31. Rxe1 {[%clk 0:00:00]}  Rxe1+ {[%clk 0:00:00]} 32. Kf2 {[%clk 0:00:00]}  Rc1 {[%clk 0:00:00]} 33. g4 {[%clk 0:00:00]}  hxg4 {[%clk 0:00:00]} 34. hxg4 {[%clk 0:00:00]}  Be6 {[%clk 0:00:00]} 35. Ne4 {[%clk 0:00:00]}  b5 {[%clk 0:00:00]} 36. f4 {[%clk 0:00:00]}  b4 {[%clk 0:00:00]} 37. Nd2 {[%clk 0:00:00]}  b3 {[%clk 0:00:00]} 38. Be4 {[%clk 0:00:00]}  b2 {[%clk 0:00:00]} 39. f5 {[%clk 0:00:00]}  Ba2 {[%clk 0:00:00]} 40. fxg6 {[%clk 0:00:00]}  fxg6 {[%clk 0:00:00]} 41. Bxg6 {[%clk 0:00:00]}  b1=Q {[%clk 0:00:00]} 42. Bxb1 {[%clk 0:00:00]}  Bxb1 {[%clk 0:00:00]} 43. Ke3 {[%clk 0:00:00]}  Bg6 {[%clk 0:00:00]} 44. Nf3 {[%clk 0:00:00]}  Rc3+ {[%clk 0:00:00]} 45. Kf2 {[%clk 0:00:00]}  Rxf3+ {[%clk 0:00:00]} 46. Kxf3 {[%clk 0:00:00]}  Bf7 {[%clk 0:00:00]} 47. Ke3 {[%clk 0:00:00]}  Bd5 {[%clk 0:00:00]} 48. Kd4 {[%clk 0:00:00]}  Kg7 {[%clk 0:00:00]} 49. Kc5 {[%clk 0:00:00]}  Kg6 {[%clk 0:00:00]} 50. Kd4 {[%clk 0:00:00]}  Kg5 {[%clk 0:00:00]} 51. Ke5 {[%clk 0:00:00]}  Kxg4 {[%clk 0:00:00]} 52. Kd4 {[%clk 0:00:00]}  Kf3 {[%clk 0:00:00]} 53. Kc5 {[%clk 0:00:00]}  Ke4 {[%clk 0:00:00]} 54. Kb4 {[%clk 0:00:00]}  Kd4 {[%clk 0:00:00]} 0-1


[Site "https://www.chess.com"]

[Event "Titled Tuesday Blitz August 16 Early 2022"]
[White "Khusenkhojaev, Muhammad"]
[Black "Filippova, Margarita"]
[WhiteFideId "14700247"]
[BlackFideId "34199680"]
[WhiteElo "2397"]
[BlackElo "2069"]
[Result "1-0"]
[Round "06"]
[TimeControl "180+2"]
[Date "2022.08.18"]
[WhiteClock "0:00:00"]
[BlackClock "0:00:00"]

1. b3 {[%clk 0:00:00]}  Nf6 {[%clk 0:00:00]} 2. Bb2 {[%clk 0:00:00]}  d5 {[%clk 0:00:00]} 3. Nf3 {[%clk 0:00:00]}  c5 {[%clk 0:00:00]} 4. e3 {[%clk 0:00:00]}  Nc6 {[%clk 0:00:00]} 5. Bb5 {[%clk 0:00:00]}  Qb6 {[%clk 0:00:00]} 6. a4 {[%clk 0:00:00]}  a6 {[%clk 0:00:00]} 7. a5 {[%clk 0:00:00]}  Qc7 {[%clk 0:00:00]} 8. Bxc6+ {[%clk 0:00:00]}  Qxc6 {[%clk 0:00:00]} 9. O-O {[%clk 0:00:00]}  Bg4 {[%clk 0:00:00]} 10. Nc3 {[%clk 0:00:00]}  e6 {[%clk 0:00:00]} 11. Na4 {[%clk 0:00:00]}  Be7 {[%clk 0:00:00]} 12. Nb6 {[%clk 0:00:00]}  Rd8 {[%clk 0:00:00]} 13. h3 {[%clk 0:00:00]}  Bh5 {[%clk 0:00:00]} 14. Ra4 {[%clk 0:00:00]}  O-O {[%clk 0:00:00]} 15. Rh4 {[%clk 0:00:00]}  Bg6 {[%clk 0:00:00]} 16. Ne5 {[%clk 0:00:00]}  Qc7 {[%clk 0:00:00]} 17. Nxg6 {[%clk 0:00:00]}  fxg6 {[%clk 0:00:00]} 18. Ra4 {[%clk 0:00:00]}  e5 {[%clk 0:00:00]} 19. d3 {[%clk 0:00:00]}  d4 {[%clk 0:00:00]} 20. e4 {[%clk 0:00:00]}  Kh8 {[%clk 0:00:00]} 21. Rc4 {[%clk 0:00:00]}  Qb8 {[%clk 0:00:00]} 22. Ba3 {[%clk 0:00:00]}  Nd7 {[%clk 0:00:00]} 23. Nxd7 {[%clk 0:00:00]}  Rxd7 {[%clk 0:00:00]} 24. Bxc5 {[%clk 0:00:00]}  Bxc5 {[%clk 0:00:00]} 25. Rxc5 {[%clk 0:00:00]}  Qd6 {[%clk 0:00:00]} 26. Rd5 {[%clk 0:00:00]}  Qc6 {[%clk 0:00:00]} 27. Rxd7 {[%clk 0:00:00]}  Qxd7 {[%clk 0:00:00]} 28. Qd2 {[%clk 0:00:00]}  Rc8 {[%clk 0:00:00]} 29. Rb1 {[%clk 0:00:00]}  Qc7 {[%clk 0:00:00]} 30. Rb2 {[%clk 0:00:00]}  Qc5 {[%clk 0:00:00]} 31. b4 {[%clk 0:00:00]}  Qb5 {[%clk 0:00:00]} 32. Qg5 {[%clk 0:00:00]}  Qa4 {[%clk 0:00:00]} 33. Kh2 {[%clk 0:00:00]}  Qa3 {[%clk 0:00:00]} 34. Rb3 {[%clk 0:00:00]}  Qa2 {[%clk 0:00:00]} 35. Qxe5 {[%clk 0:00:00]}  Qxc2 {[%clk 0:00:00]} 36. Qe6 {[%clk 0:00:00]}  Qc7+ {[%clk 0:00:00]} 37. e5 {[%clk 0:00:00]}  Rd8 {[%clk 0:00:00]} 38. b5 {[%clk 0:00:00]}  axb5 {[%clk 0:00:00]} 39. Rxb5 {[%clk 0:00:00]}  h6 {[%clk 0:00:00]} 40. Qxg6 {[%clk 0:00:00]}  Rf8 {[%clk 0:00:00]} 41. Qd6 {[%clk 0:00:00]}  Qc8 {[%clk 0:00:00]} 42. Qxd4 {[%clk 0:00:00]}  Rd8 {[%clk 0:00:00]} 43. Rd5 {[%clk 0:00:00]}  Re8 {[%clk 0:00:00]} 44. Rd7 {[%clk 0:00:00]}  Qb8 {[%clk 0:00:00]} 45. f4 {[%clk 0:00:00]}  Qc8 {[%clk 0:00:00]} 46. e6 {[%clk 0:00:00]} 1-0


[Site "https://www.chess.com"]